bitfinex-derivatives/quotes_BTCF0:USTF0_20260118
["timestamp","ask_amount","ask_price","bid_price","bid_amount"]
[1768707441482,0.05271834,95281.0,95276.0,0.03044541]
[1768707441690,0.01490923,95280.0,95272.0,0.03760725]
[1768707441881,0.01490923,95280.0,95273.0,0.03044541]
[1768707442181,0.01490923,95280.0,95274.0,0.03044541]
[1768707442373,0.01490923,95280.0,95275.0,0.03044541]
[1768707442681,0.01490923,95280.0,95271.0,0.03760725]
[1768707442882,0.01490923,95280.0,95272.0,0.03020449]
[1768707443083,0.01490923,95280.0,95273.0,0.03020449]
[1768707443283,0.01490923,95280.0,95274.0,0.03020449]
[1768707443579,0.01490923,95280.0,95275.0,0.03020449]
[1768707443784,0.01490923,95280.0,95276.0,0.03020449]
[1768707443984,0.01490923,95280.0,95272.0,0.03760725]
[1768707444185,0.01490923,95280.0,95273.0,0.03020878]
[1768707444388,0.01490923,95280.0,95274.0,0.03020878]
[1768707444574,0.01490923,95280.0,95275.0,0.03020878]
[1768707444774,0.01490923,95280.0,95276.0,0.03020878]
[1768707445073,0.01490923,95280.0,95272.0,0.03760725]
[1768707445269,0.01490923,95280.0,95273.0,0.03021443]
[1768707445583,0.01490923,95280.0,95274.0,0.03021443]
[1768707445783,0.01490923,95280.0,95275.0,0.03021443]
[1768707446080,0.01490923,95280.0,95276.0,0.03021443]
[1768707446279,0.01490923,95280.0,95272.0,0.03760725]
[1768707446482,0.01490923,95280.0,95273.0,0.03021707]
[1768707446683,0.01490923,95280.0,95274.0,0.03021707]
[1768707446884,0.01490923,95280.0,95275.0,0.03021707]
[1768707447176,0.01490923,95280.0,95267.0,0.04810725]
[1768707447384,0.01490923,95280.0,95268.0,0.03021909]
[1768707447684,0.01490923,95280.0,95269.0,0.03021909]
[1768707447884,0.01490923,95280.0,95270.0,0.03021909]
[1768707448086,0.01490923,95280.0,95271.0,0.03021909]
[1768707448384,0.01490923,95280.0,95267.0,0.04810725]
[1768707448585,0.01490923,95280.0,95268.0,0.0302195]
[1768707448784,0.01490923,95280.0,95269.0,0.0302195]
[1768707449085,0.01490923,95280.0,95270.0,0.0302195]
[1768707449385,0.01490923,95280.0,95271.0,0.0302195]
[1768707449686,0.01490923,95280.0,95267.0,0.04810725]
[1768707449985,0.01490923,95280.0,95268.0,0.03021977]
[1768707450186,0.01490923,95280.0,95269.0,0.03021977]
[1768707450385,0.01490923,95280.0,95270.0,0.03021977]
[1768707450580,0.01490923,95280.0,95271.0,0.03021977]
[1768707450787,0.01490923,95280.0,95267.0,0.04810725]
[1768707450982,0.01490923,95280.0,95269.0,0.0105]
[1768707451183,0.01490923,95280.0,95270.0,0.03021972]
[1768707451384,0.01490923,95280.0,95271.0,0.03021972]
[1768707451583,0.01490923,95280.0,95269.0,0.0105]
[1768707451785,0.01490923,95280.0,95270.0,0.03022026]
[1768707452090,0.01490923,95280.0,95271.0,0.03022026]
[1768707452282,0.01490923,95280.0,95268.0,0.0105]
[1768707452483,0.01490923,95280.0,95269.0,0.03022075]
[1768707452685,0.01490923,95280.0,95270.0,0.03022075]
[1768707452985,0.01490923,95280.0,95271.0,0.03022075]
[1768707453181,0.01490923,95280.0,95268.0,0.0105]
[1768707453379,0.01490923,95280.0,95269.0,0.0302213]
[1768707453573,0.01490923,95280.0,95270.0,0.0302213]
[1768707453778,0.01490923,95280.0,95271.0,0.0302213]
[1768707453986,0.01490923,95280.0,95268.0,0.0105]
[1768707454193,0.01490923,95280.0,95269.0,0.03022133]
[1768707454388,0.01490923,95280.0,95270.0,0.03022133]
[1768707454587,0.01490923,95280.0,95271.0,0.03022133]
[1768707454789,0.01490923,95280.0,95268.0,0.0105]
[1768707454996,0.01490923,95280.0,95269.0,0.03022208]
[1768707455293,0.01490923,95280.0,95270.0,0.03022208]
[1768707455482,0.01490923,95280.0,95271.0,0.03022208]
[1768707455682,0.01490923,95280.0,95267.0,0.04810725]
[1768707455883,0.01490923,95280.0,95268.0,0.03022239]
[1768707456093,0.01490923,95280.0,95269.0,0.03022239]
[1768707456297,0.01490923,95280.0,95270.0,0.03022239]
[1768707456495,0.01490923,95280.0,95271.0,0.03022239]
[1768707456794,0.01490923,95280.0,95267.0,0.04810725]
[1768707457093,0.01625725,95284.0,95273.0,0.03760725]
[1768707457290,0.01625725,95284.0,95274.0,0.03022262]
[1768707457491,0.01625725,95284.0,95275.0,0.03022262]
[1768707457691,0.01625725,95284.0,95276.0,0.03022262]
[1768707457891,0.01625725,95284.0,95273.0,0.03760725]
[1768707457892,0.01625725,95284.0,95277.0,0.03022262]
[1768707458083,0.01625725,95284.0,95273.0,0.03760725]
[1768707458287,0.01625725,95284.0,95274.0,0.03015931]
[1768707458488,0.01625725,95284.0,95275.0,0.03015931]
[1768707458793,0.01625725,95284.0,95276.0,0.03015931]
[1768707458996,0.01625725,95284.0,95277.0,0.03015931]
[1768707459290,0.01625725,95284.0,95278.0,0.0304848]
[1768707459291,0.00956,95283.0,95278.0,0.0304848]
[1768707459493,0.00956,95283.0,95269.0,0.06700643]
[1768707459494,0.00956,95283.0,95273.0,0.03760725]
[1768707459696,0.00956,95283.0,95274.0,0.03048481]
[1768707459883,0.00956,95283.0,95275.0,0.03048481]
[1768707460085,0.00956,95283.0,95276.0,0.03048481]
[1768707460382,0.00956,95283.0,95277.0,0.03048481]
[1768707460579,0.00956,95283.0,95274.0,0.03760725]
[1768707460580,0.00956,95283.0,95278.0,0.03048481]
[1768707460793,0.00956,95283.0,95274.0,0.03760725]
[1768707460995,0.00956,95283.0,95275.0,0.03048522]
[1768707461196,0.00956,95283.0,95276.0,0.03048522]
[1768707461388,0.00956,95283.0,95277.0,0.03048522]
[1768707461694,0.00956,95283.0,95273.0,0.03760725]
[1768707461882,0.00956,95283.0,95274.0,0.03031328]
[1768707462085,0.00956,95283.0,95275.0,0.03031328]
[1768707462400,0.00956,95283.0,95276.0,0.03031328]
[1768707462592,0.00956,95283.0,95277.0,0.03031328]
[1768707462895,0.00956,95283.0,95273.0,0.03760725]
[1768707463197,0.00956,95283.0,95274.0,0.03031389]
[1768707463396,0.00956,95283.0,95275.0,0.03031389]
[1768707463696,0.00956,95283.0,95276.0,0.03031389]
[1768707463895,0.00956,95282.0,95273.0,0.03760725]
[1768707464206,0.01625725,95284.0,95252.0,0.09474828]
[1768707464207,0.00921763,95268.0,95252.0,0.09474828]
[1768707464394,0.09456,95272.0,95250.0,0.010502]
[1768707465110,0.09456,95272.0,95250.0,0.02042736]
[1768707465397,0.09456,95272.0,95251.0,0.00992536]
[1768707466791,0.09456,95272.0,95252.0,0.010502]
[1768707469698,0.09456,95272.0,95251.0,0.00992536]
[1768707471997,0.0105,95271.0,95251.0,0.00992536]
[1768707478299,0.0105,95269.0,95251.0,0.00992536]
[1768707479990,0.0105,95267.0,95251.0,0.00992536]
[1768707480902,0.010501,95260.0,95251.0,0.00992536]
[1768707481100,0.010501,95260.0,95249.0,0.00230975]
[1768707483799,0.010501,95261.0,95249.0,0.00230975]
[1768707484001,0.010501,95261.0,95250.0,0.05642907]
[1768707484202,0.010501,95261.0,95249.0,0.05873882]
[1768707485914,0.09456,95262.0,95249.0,0.05873882]
[1768707486307,0.09456,95262.0,95250.0,0.05642907]
[1768707487110,0.09456,95262.0,95249.0,0.00230975]
[1768707487305,0.11019138,95260.0,95249.0,0.00230975]
[1768707491119,0.12069238,95260.0,95249.0,0.00230975]
[1768707491714,0.09456,95262.0,95249.0,0.00230975]
[1768707492019,0.11019138,95260.0,95249.0,0.00230975]
[1768707492221,0.09456,95262.0,95249.0,0.00230975]
[1768707494111,0.010501,95261.0,95249.0,0.00230975]
[1768707496128,0.010501,95259.0,95249.0,0.00230975]
[1768707497226,0.105061,95262.0,95249.0,0.00230975]
[1768707497426,0.09456,95262.0,95249.0,0.00230975]
[1768707497928,0.010501,95261.0,95249.0,0.00230975]
[1768707498616,0.11019138,95260.0,95249.0,0.00230975]
[1768707499528,0.11019138,95260.0,95251.0,0.02821824]
[1768707500528,0.11019138,95260.0,95252.0,0.02821824]
[1768707500729,0.11019138,95260.0,95251.0,0.02821824]
[1768707501229,0.11019138,95260.0,95252.0,0.02821824]
[1768707501430,0.010501,95261.0,95252.0,0.02821824]
[1768707501625,0.09456,95262.0,95252.0,0.02821824]
[1768707501829,0.20475138,95262.0,95252.0,0.02821824]
[1768707505833,0.20475138,95262.0,95253.0,0.02821824]
[1768707506030,0.010501,95261.0,95253.0,0.02821824]
[1768707506727,0.20475138,95262.0,95253.0,0.02821824]
[1768707508237,0.20475138,95262.0,95254.0,0.02821824]
[1768707510244,0.20475138,95262.0,95255.0,0.02821824]
[1768707510431,0.09456,95262.0,95255.0,0.02821824]
[1768707510831,0.09456,95262.0,95254.0,0.02821824]
[1768707511040,0.09456,95262.0,95255.0,0.02821824]
[1768707511641,0.09456,95262.0,95254.0,0.02821824]
[1768707515034,0.010501,95261.0,95254.0,0.02821824]
[1768707515545,0.09456,95262.0,95254.0,0.02821824]
[1768707516446,0.105061,95262.0,95254.0,0.02821824]
[1768707517542,0.09456,95262.0,95254.0,0.02821824]
[1768707518151,0.04668427,95262.0,95255.0,0.02821824]
[1768707518449,0.04668427,95262.0,95256.0,0.02821824]
[1768707519545,0.04668427,95262.0,95255.0,0.02821824]
[1768707522251,0.04668427,95262.0,95254.0,0.02821824]
[1768707522452,0.04668427,95262.0,95253.0,0.02821824]
[1768707522651,0.04668427,95262.0,95254.0,0.02821824]
[1768707523851,0.09456,95261.0,95254.0,0.02821824]
[1768707526346,0.09456,95261.0,95254.0,0.02824774]
[1768707528643,0.09456,95260.0,95254.0,0.02824774]
[1768707528848,0.09456,95260.0,95254.0,0.03726091]
[1768707532461,0.09456,95260.0,95255.0,0.02824774]
[1768707533146,0.09456,95260.0,95256.0,0.01326966]
[1768707534261,0.09456,95260.0,95255.0,0.02824774]
[1768707534555,0.09456,95260.0,95256.0,0.02824774]
[1768707537056,0.09456,95260.0,95251.0,0.01326966]
[1768707541270,0.09456,95260.0,95250.0,0.02824774]
[1768707541861,0.09456,95260.0,95251.0,0.01326966]
[1768707543561,0.00838663,95279.0,95258.0,0.01326966]
[1768707543765,0.09456,95278.0,95258.0,0.01326966]
[1768707544369,0.010499,95274.0,95258.0,0.01326966]
[1768707544770,0.11019138,95270.0,95258.0,0.01326966]
[1768707546473,0.11019138,95270.0,95250.0,0.02824774]
[1768707546864,0.11019138,95270.0,95251.0,0.01326966]
[1768707547170,0.11019138,95270.0,95255.0,0.02824774]
[1768707547372,0.010499,95277.0,95255.0,0.02824774]
[1768707547573,0.11019138,95270.0,95255.0,0.02824774]
[1768707549266,0.00034024,95273.0,95255.0,0.02824774]
[1768707549764,0.0105,95269.0,95255.0,0.02824774]
[1768707549964,0.0105,95269.0,95254.0,0.02824774]
[1768707550668,0.00039209,95270.0,95254.0,0.02824774]
[1768707550873,0.00039209,95270.0,95255.0,0.02824774]
[1768707551173,0.00039209,95270.0,95254.0,0.02824774]
[1768707551674,0.00039209,95270.0,95255.0,0.02824774]
[1768707552566,0.0105,95271.0,95256.0,0.02824774]
[1768707554579,0.0105,95271.0,95255.0,0.02824774]
[1768707554779,0.0105,95271.0,95256.0,0.02824774]
[1768707554983,0.01102773,95271.0,95256.0,0.02824774]
[1768707555675,0.0105,95271.0,95256.0,0.02824774]
[1768707555879,0.0105,95271.0,95256.0,0.0415174]
[1768707556483,0.0105,95271.0,95257.0,0.02824774]
[1768707557182,0.0105,95271.0,95256.0,0.01326966]
[1768707557378,0.010499,95274.0,95256.0,0.01326966]
[1768707559284,0.00052773,95275.0,95256.0,0.01326966]
[1768707559480,0.09456,95274.0,95260.0,0.01326966]
[1768707563278,0.09456,95274.0,95258.0,0.02824774]
[1768707565182,0.09456,95274.0,95259.0,0.02824774]
[1768707565383,0.09563193,95274.0,95258.0,0.02824774]
[1768707567178,0.09563193,95274.0,95259.0,0.02824774]
[1768707574586,0.09563193,95274.0,95260.0,0.02824774]
[1768707575296,0.09563193,95274.0,95259.0,0.02824774]
[1768707577096,0.09563193,95274.0,95255.0,0.03000727]
[1768707578987,0.09563193,95274.0,95255.0,0.01807724]
[1768707579388,0.09563193,95274.0,95255.0,0.04632498]
[1768707582193,0.00133732,95273.0,95255.0,0.04632498]
[1768707584602,0.00133732,95273.0,95255.0,0.01807724]
[1768707585502,0.09456,95272.0,95256.0,0.02019827]
[1768707585697,0.09456,95272.0,95256.0,0.03069927]
[1768707586502,0.09456,95272.0,95257.0,0.02019827]
[1768707587201,0.09456,95272.0,95261.0,0.02824774]
[1768707588301,0.09456,95272.0,95262.0,0.02824774]
[1768707588610,0.09456,95272.0,95261.0,0.02824774]
[1768707589406,0.09456,95272.0,95262.0,0.02824774]
[1768707590611,0.09456,95272.0,95263.0,0.02824774]
[1768707592406,0.09456,95272.0,95262.0,0.02824774]
[1768707592608,0.09456,95272.0,95263.0,0.02824774]
[1768707593310,0.09456,95272.0,95262.0,0.02824774]
[1768707593610,0.09456,95272.0,95263.0,0.02824774]
[1768707593812,0.09456,95272.0,95262.0,0.02824774]
[1768707594608,0.09456,95272.0,95263.0,0.02824774]
[1768707594807,0.09456,95272.0,95264.0,0.02824774]
[1768707604722,0.09456,95272.0,95263.0,0.02824774]
[1768707611724,0.09456,95272.0,95264.0,0.05742415]
[1768707611921,0.09456,95272.0,95264.0,0.02824774]
[1768707612421,0.09456,95272.0,95265.0,0.05742395]
[1768707612624,0.09456,95272.0,95265.0,0.02824774]
[1768707614625,0.09456,95272.0,95261.0,0.03762184]
[1768707614827,0.09456,95272.0,95262.0,0.06679851]
[1768707615125,0.09456,95272.0,95258.0,0.010501]
[1768707615126,0.09456,95272.0,95263.0,0.02917667]
[1768707615324,0.09456,95272.0,95264.0,0.02917667]
[1768707615524,0.09456,95272.0,95265.0,0.02917667]
[1768707615725,0.09456,95272.0,95261.0,0.03762184]
[1768707615927,0.09456,95272.0,95262.0,0.02909413]
[1768707616124,0.09456,95272.0,95263.0,0.02909413]
[1768707616323,0.09456,95272.0,95264.0,0.02909413]
[1768707616630,0.09456,95272.0,95265.0,0.02909413]
[1768707616823,0.09456,95272.0,95266.0,0.02909413]
[1768707617126,0.09456,95272.0,95261.0,0.03762184]
[1768707617330,0.09456,95272.0,95262.0,0.02909411]
[1768707617620,0.09456,95272.0,95263.0,0.02909411]
[1768707617825,0.09456,95272.0,95264.0,0.02909411]
[1768707618033,0.09456,95272.0,95265.0,0.02909411]
[1768707618232,0.09456,95272.0,95261.0,0.03762184]
[1768707618424,0.09456,95272.0,95262.0,0.02909465]
[1768707618634,0.09456,95272.0,95263.0,0.02909465]
[1768707618824,0.09456,95272.0,95264.0,0.02909465]
[1768707619121,0.09456,95272.0,95265.0,0.02909465]
[1768707619329,0.09456,95272.0,95261.0,0.03762184]
[1768707619532,0.09456,95272.0,95262.0,0.02909525]
[1768707619831,0.09456,95272.0,95263.0,0.02909525]
[1768707620024,0.09456,95272.0,95264.0,0.02909525]
[1768707620326,0.09456,95272.0,95265.0,0.02909525]
[1768707620526,0.09456,95272.0,95261.0,0.03762184]
[1768707620728,0.09456,95272.0,95262.0,0.02909563]
[1768707620912,0.09456,95272.0,95261.0,0.03762184]
[1768707620913,0.09456,95272.0,95263.0,0.02909563]
[1768707621117,0.09456,95272.0,95264.0,0.02909563]
[1768707621317,0.09456,95272.0,95265.0,0.02909563]
[1768707621522,0.09456,95272.0,95261.0,0.03762184]
[1768707621738,0.09456,95272.0,95262.0,0.029099]
[1768707622018,0.09456,95272.0,95263.0,0.029099]
[1768707622221,0.09456,95272.0,95264.0,0.029099]
[1768707622524,0.09456,95272.0,95261.0,0.03762184]
[1768707622525,0.09456,95272.0,95265.0,0.029099]
[1768707622724,0.09456,95272.0,95261.0,0.03762184]
[1768707622923,0.09456,95272.0,95262.0,0.02909897]
[1768707623131,0.09456,95272.0,95263.0,0.02909897]
[1768707623436,0.09456,95272.0,95264.0,0.02909897]
[1768707623617,0.09456,95272.0,95265.0,0.02909897]
[1768707623820,0.09456,95272.0,95261.0,0.03762184]
[1768707624027,0.09456,95272.0,95262.0,0.02909929]
[1768707624226,0.09456,95272.0,95263.0,0.02909929]
[1768707624432,0.09456,95272.0,95261.0,0.03762184]
[1768707624433,0.09456,95272.0,95264.0,0.02909929]
[1768707624628,0.09456,95272.0,95261.0,0.03762184]
[1768707624629,0.09456,95272.0,95265.0,0.02909929]
[1768707624834,0.09456,95272.0,95256.0,0.03362497]
[1768707624835,0.09456,95272.0,95260.0,0.03762184]
[1768707625032,0.09456,95272.0,95261.0,0.02914468]
[1768707625330,0.09456,95272.0,95262.0,0.02914468]
[1768707625637,0.09456,95272.0,95263.0,0.02914468]
[1768707625822,0.09456,95272.0,95264.0,0.02914468]
[1768707626024,0.09456,95272.0,95260.0,0.03762184]
[1768707626334,0.09456,95272.0,95261.0,0.02914733]
[1768707626534,0.09456,95272.0,95262.0,0.02914733]
[1768707626732,0.09456,95272.0,95263.0,0.02914733]
[1768707626934,0.09456,95272.0,95264.0,0.02914733]
[1768707627132,0.09456,95272.0,95256.0,0.09005404]
[1768707627133,0.09456,95272.0,95256.0,0.03362497]
[1768707627330,0.09456,95272.0,95257.0,0.02914731]
[1768707627533,0.09456,95272.0,95258.0,0.02914731]
[1768707627832,0.09456,95272.0,95259.0,0.02914731]
[1768707628024,0.09456,95272.0,95256.0,0.03362497]
[1768707628336,0.09456,95272.0,95257.0,0.02914783]
[1768707628633,0.09456,95272.0,95256.0,0.03362497]
[1768707628634,0.09456,95272.0,95258.0,0.02914783]
[1768707628819,0.09456,95272.0,95259.0,0.02914783]
[1768707629017,0.09456,95272.0,95256.0,0.03362497]
[1768707629232,0.09456,95272.0,95257.0,0.02914796]
[1768707629430,0.09456,95272.0,95258.0,0.02914796]
[1768707629625,0.09456,95272.0,95259.0,0.02914796]
[1768707629826,0.09456,95272.0,95256.0,0.03362497]
[1768707630028,0.09456,95272.0,95257.0,0.02914806]
[1768707630332,0.09456,95272.0,95258.0,0.02914806]
[1768707630530,0.09456,95272.0,95259.0,0.02914811]
[1768707630731,0.09456,95272.0,95256.0,0.03362497]
[1768707630933,0.09456,95272.0,95257.0,0.02914808]
[1768707631232,0.09456,95272.0,95258.0,0.02914808]
[1768707631422,0.09456,95272.0,95259.0,0.02914808]
[1768707631622,0.09456,95272.0,95256.0,0.03362497]
[1768707631834,0.09456,95272.0,95257.0,0.02914819]
[1768707632023,0.09456,95272.0,95256.0,0.03362497]
[1768707632024,0.09456,95272.0,95258.0,0.02914819]
[1768707632331,0.09456,95272.0,95259.0,0.02914819]
[1768707632534,0.09456,95272.0,95256.0,0.02040148]
[1768707632733,0.09456,95272.0,95257.0,0.02915298]
[1768707633038,0.09456,95272.0,95258.0,0.02915298]
[1768707633235,0.09456,95272.0,95259.0,0.02915298]
[1768707633425,0.09456,95272.0,95256.0,0.02040148]
[1768707633625,0.09456,95272.0,95257.0,0.0291538]
[1768707633826,0.09456,95272.0,95258.0,0.0291538]
[1768707634035,0.09456,95272.0,95259.0,0.0291538]
[1768707634333,0.09456,95272.0,95256.0,0.02040148]
[1768707634529,0.09456,95272.0,95257.0,0.02915368]
[1768707634729,0.09456,95272.0,95258.0,0.02915368]
[1768707634929,0.09456,95272.0,95259.0,0.02915368]
[1768707635141,0.09456,95272.0,95256.0,0.02040148]
[1768707635428,0.09456,95272.0,95257.0,0.02915384]
[1768707635628,0.09456,95272.0,95258.0,0.02915384]
[1768707635828,0.09456,95272.0,95256.0,0.02040148]
[1768707636029,0.09456,95272.0,95257.0,0.02915377]
[1768707636224,0.09456,95272.0,95258.0,0.02915377]
[1768707636531,0.09456,95272.0,95256.0,0.02040148]
[1768707636731,0.09456,95272.0,95257.0,0.02915394]
[1768707636931,0.09456,95272.0,95258.0,0.02915394]
[1768707637244,0.09456,95272.0,95261.0,0.03762184]
[1768707637435,0.09456,95272.0,95262.0,0.02915392]
[1768707637628,0.09456,95272.0,95263.0,0.02915392]
[1768707637830,0.09456,95272.0,95264.0,0.02915392]
[1768707638129,0.09456,95272.0,95265.0,0.02915392]
[1768707638329,0.09456,95272.0,95261.0,0.03762184]
[1768707638529,0.09456,95272.0,95262.0,0.02915413]
[1768707638730,0.09456,95272.0,95263.0,0.02915413]
[1768707639035,0.09456,95272.0,95264.0,0.02915413]
[1768707639235,0.09456,95272.0,95265.0,0.02915413]
[1768707639436,0.09456,95272.0,95261.0,0.03762184]
[1768707639633,0.09456,95272.0,95262.0,0.02915425]
[1768707639930,0.09456,95272.0,95263.0,0.02915425]
[1768707640131,0.09456,95272.0,95264.0,0.02915425]
[1768707640335,0.09456,95272.0,95265.0,0.02915425]
[1768707640525,0.09456,95272.0,95261.0,0.03762184]
[1768707640727,0.09456,95272.0,95262.0,0.02915441]
[1768707640925,0.09456,95272.0,95263.0,0.02915441]
[1768707641125,0.09456,95272.0,95264.0,0.02915441]
[1768707641325,0.09456,95272.0,95265.0,0.02915441]
[1768707641541,0.09456,95272.0,95261.0,0.03762184]
[1768707641734,0.09456,95272.0,95262.0,0.02915469]
[1768707641933,0.09456,95272.0,95263.0,0.02915469]
[1768707642135,0.09456,95272.0,95264.0,0.02915469]
[1768707642332,0.09456,95272.0,95265.0,0.02915469]
[1768707642526,0.09456,95272.0,95261.0,0.03762184]
[1768707642733,0.09456,95272.0,95262.0,0.02913988]
[1768707642935,0.09456,95272.0,95263.0,0.02913988]
[1768707643126,0.09456,95272.0,95264.0,0.02913988]
[1768707643349,0.09456,95272.0,95265.0,0.02913988]
[1768707643530,0.09456,95272.0,95261.0,0.03762184]
[1768707643735,0.09456,95272.0,95262.0,0.02913979]
[1768707643929,0.09456,95272.0,95261.0,0.03762184]
[1768707643930,0.09456,95272.0,95263.0,0.02913979]
[1768707644136,0.09456,95272.0,95264.0,0.02913979]
[1768707644332,0.09456,95272.0,95261.0,0.03762184]
[1768707644333,0.09456,95272.0,95265.0,0.02913979]
[1768707644640,0.09456,95272.0,95261.0,0.03762184]
[1768707644840,0.09456,95272.0,95262.0,0.02913962]
[1768707645039,0.09456,95272.0,95263.0,0.02913962]
[1768707645237,0.09456,95272.0,95264.0,0.02913962]
[1768707645542,0.09456,95272.0,95265.0,0.02913962]
[1768707645741,0.09456,95272.0,95261.0,0.03762184]
[1768707646044,0.09456,95272.0,95262.0,0.02913961]
[1768707646238,0.09456,95272.0,95263.0,0.02913961]
[1768707646441,0.09456,95272.0,95264.0,0.02913961]
[1768707646743,0.09456,95272.0,95265.0,0.02913961]
[1768707646940,0.09456,95272.0,95261.0,0.03762184]
[1768707647142,0.09456,95272.0,95262.0,0.02913961]
[1768707647439,0.09456,95272.0,95263.0,0.02913961]
[1768707647741,0.09456,95272.0,95264.0,0.02913961]
[1768707647933,0.09456,95272.0,95265.0,0.02913961]
[1768707648138,0.09456,95272.0,95261.0,0.03762184]
[1768707648331,0.09456,95272.0,95262.0,0.02913952]
[1768707648537,0.09456,95272.0,95263.0,0.02913952]
[1768707648737,0.09456,95272.0,95264.0,0.02913952]
[1768707648942,0.09456,95272.0,95265.0,0.02913952]
[1768707649142,0.09456,95272.0,95261.0,0.03762184]
[1768707649342,0.09456,95272.0,95262.0,0.02913953]
[1768707649637,0.09456,95272.0,95263.0,0.02913953]
[1768707649843,0.09456,95272.0,95264.0,0.02913953]
[1768707650044,0.09456,95272.0,95265.0,0.02913953]
[1768707650245,0.09456,95272.0,95261.0,0.03762184]
[1768707650445,0.09456,95272.0,95262.0,0.02913943]
[1768707650654,0.09456,95272.0,95263.0,0.02913943]
[1768707650843,0.09456,95272.0,95264.0,0.02913943]
[1768707651043,0.09456,95272.0,95265.0,0.02913943]
[1768707651342,0.09456,95272.0,95261.0,0.03762184]
[1768707651541,0.09456,95272.0,95262.0,0.02913963]
[1768707651744,0.09456,95272.0,95263.0,0.02913963]
[1768707651944,0.09456,95272.0,95264.0,0.02913963]
[1768707652152,0.09456,95272.0,95265.0,0.02913963]
[1768707652352,0.09456,95272.0,95261.0,0.03762184]
[1768707652557,0.09456,95272.0,95262.0,0.02913971]
[1768707652754,0.09456,95272.0,95263.0,0.02913971]
[1768707653055,0.09456,95272.0,95264.0,0.02913971]
[1768707653355,0.09456,95272.0,95265.0,0.02913971]
[1768707653547,0.09456,95272.0,95261.0,0.03762184]
[1768707653748,0.09456,95272.0,95262.0,0.02913971]
[1768707653952,0.09456,95272.0,95263.0,0.02913971]
[1768707654154,0.09456,95272.0,95264.0,0.02913971]
[1768707654352,0.09456,95272.0,95265.0,0.02913971]
[1768707654550,0.09456,95272.0,95261.0,0.03762184]
[1768707654752,0.09456,95272.0,95262.0,0.0291399]
[1768707654950,0.09456,95272.0,95263.0,0.0291399]
[1768707655141,0.09456,95272.0,95264.0,0.0291399]
[1768707655340,0.09456,95272.0,95265.0,0.0291399]
[1768707655544,0.09456,95272.0,95261.0,0.03762184]
[1768707655746,0.09456,95272.0,95262.0,0.02913975]
[1768707655948,0.09456,95272.0,95263.0,0.02913975]
[1768707656152,0.09456,95272.0,95264.0,0.02913975]
[1768707656353,0.09456,95272.0,95265.0,0.02913975]
[1768707656550,0.09456,95272.0,95261.0,0.03762184]
[1768707656852,0.09456,95272.0,95262.0,0.02913956]
[1768707657053,0.09456,95272.0,95263.0,0.02913956]
[1768707657254,0.09456,95272.0,95264.0,0.02913956]
[1768707657454,0.09456,95272.0,95265.0,0.02913956]
[1768707657656,0.09456,95272.0,95261.0,0.03762184]
[1768707657857,0.09456,95272.0,95262.0,0.02913995]
[1768707658057,0.09456,95272.0,95263.0,0.02913995]
[1768707658255,0.09456,95272.0,95264.0,0.02913995]
[1768707658457,0.09456,95272.0,95265.0,0.02913995]
[1768707658656,0.09456,95272.0,95261.0,0.03762184]
[1768707658857,0.09456,95272.0,95262.0,0.02914014]
[1768707659049,0.09456,95272.0,95263.0,0.02914014]
[1768707659250,0.09456,95272.0,95264.0,0.02914014]
[1768707659451,0.09456,95272.0,95265.0,0.02914014]
[1768707659651,0.09456,95272.0,95261.0,0.03762184]
[1768707659958,0.09456,95272.0,95262.0,0.02914031]
[1768707660160,0.09456,95272.0,95263.0,0.02914031]
[1768707660358,0.09456,95272.0,95264.0,0.02914031]
[1768707660558,0.09456,95272.0,95265.0,0.02914031]
[1768707660748,0.09456,95272.0,95261.0,0.03762184]
[1768707660949,0.09456,95272.0,95262.0,0.0291403]
[1768707661150,0.09456,95272.0,95263.0,0.0291403]
[1768707661458,0.09456,95272.0,95264.0,0.0291403]
[1768707661657,0.09456,95272.0,95265.0,0.0291403]
[1768707661847,0.09456,95272.0,95261.0,0.03762184]
[1768707662048,0.09456,95272.0,95262.0,0.02938489]
[1768707662358,0.09456,95272.0,95263.0,0.02938489]
[1768707662656,0.09456,95272.0,95261.0,0.03762184]
[1768707662657,0.09456,95272.0,95257.0,0.05642907]
[1768707662861,0.09456,95272.0,95257.0,0.02389862]
[1768707663165,0.09456,95272.0,95258.0,0.02389862]
[1768707665753,0.09716028,95272.0,95258.0,0.02389862]
[1768707666964,0.00249477,95271.0,95256.0,0.05642907]
[1768707667149,0.00249477,95271.0,95253.0,0.02389862]
[1768707674469,0.00249477,95271.0,95254.0,0.02903272]
[1768707674658,0.00249477,95271.0,95259.0,0.02827803]
[1768707675862,0.09456,95272.0,95259.0,0.02827803]
[1768707677168,0.09456,95272.0,95265.0,0.02827803]
[1768707684372,0.09456,95272.0,95264.0,0.0282798]
[1768707687170,0.0105,95271.0,95256.0,0.05241829]
[1768707687369,0.0105,95271.0,95257.0,0.02877333]
[1768707687675,0.0105,95271.0,95258.0,0.02877333]
[1768707687888,0.0105,95271.0,95259.0,0.02877333]
[1768707688065,0.01437479,95271.0,95260.0,0.02877333]
[1768707688270,0.01437479,95271.0,95261.0,0.02877333]
[1768707688473,0.01437479,95271.0,95255.0,0.02389862]
[1768707688474,0.0105,95271.0,95262.0,0.02877333]
[1768707688668,0.0105,95271.0,95263.0,0.02877333]
[1768707688875,0.0105,95271.0,95264.0,0.02877333]
[1768707689175,0.0105,95271.0,95255.0,0.02389862]
[1768707689374,0.0105,95271.0,95256.0,0.02877295]
[1768707689573,0.0105,95271.0,95257.0,0.02877295]
[1768707689773,0.0105,95271.0,95258.0,0.02877295]
[1768707690081,0.0105,95271.0,95259.0,0.02877295]
[1768707690273,0.0105,95271.0,95260.0,0.02877295]
[1768707690477,0.0105,95271.0,95261.0,0.02877295]
[1768707690680,0.0105,95271.0,95262.0,0.02877295]
[1768707690982,0.0105,95271.0,95263.0,0.02877295]
[1768707691179,0.0105,95271.0,95264.0,0.02877295]
[1768707691379,0.0105,95271.0,95255.0,0.02389862]
[1768707691579,0.0105,95271.0,95256.0,0.02877261]
[1768707691778,0.0105,95271.0,95257.0,0.02877261]
[1768707691980,0.0105,95271.0,95258.0,0.02877261]
[1768707692180,0.0105,95271.0,95259.0,0.02877261]
[1768707692381,0.0105,95271.0,95260.0,0.02877261]
[1768707692572,0.0105,95271.0,95261.0,0.02877261]
[1768707692772,0.0105,95271.0,95262.0,0.02877261]
[1768707692972,0.0105,95271.0,95263.0,0.02877261]
[1768707693267,0.0105,95271.0,95264.0,0.02877261]